fUSD/lending_fUSD_20250211
["ID","MTS","AMOUNT","RATE_DAILY","PERIOD"]
[352739415,1739283107061,-540.21,0.00012328,2]
[352739416,1739283107071,-461.5262717,0.00012328,2]
[352739417,1739283107081,-1099.61,0.00012328,2]
[352739418,1739283107091,-543.05,0.00012328,2]
[352739419,1739283107101,-735.96,0.00012328,2]
[352739420,1739283107110,-1136.7,0.00012328,2]
[352739421,1739283107120,-500.0,0.00012328,2]
[352739422,1739283107130,-500.0,0.00012328,2]
[352739423,1739283107140,-875.16,0.00012328,2]
[352739424,1739283107149,-580.72,0.00012328,2]
[352739425,1739283107159,-500.0,0.00012328,2]
[352739426,1739283107169,-1187.47,0.00012328,2]
[352739427,1739283107179,-1053.93,0.00012328,2]
[352739428,1739283107189,-635.88,0.00012328,2]
[352739429,1739283107199,-1017.56,0.00012328,2]
[352739430,1739283107209,-683.09,0.00012328,2]
[352739431,1739283107219,-500.0,0.00012328,2]
[352739432,1739283107229,-1174.81,0.00012328,2]
[352739433,1739283107239,-500.0,0.00012328,2]
[352739434,1739283107249,-641.21,0.00012328,2]
[352739435,1739283107259,-515.4,0.00012328,2]
[352739436,1739283107269,-811.4,0.00012328,2]
[352739437,1739283107278,-500.0,0.00012328,2]
[352739438,1739283107288,-2279.79,0.00012328,2]
[352739439,1739283107297,-500.0,0.00012328,2]
[352739440,1739283107307,-1026.36,0.00012328,2]
[352739441,1739283107317,-500.0,0.00012328,2]
[352739442,1739283107332,-544.63,0.00012328,2]
[352739443,1739283107341,-1181.86,0.00012328,2]
[352739444,1739283107351,-249.31090019,0.00012328,2]
[352739445,1739283107361,-678.67,0.00012328,2]
[352739446,1739283107371,-1235.55,0.00012328,2]
[352739447,1739283107381,-500.0,0.00012328,2]
[352739448,1739283107391,-500.0,0.00012328,2]
[352739449,1739283107400,-2015.94,0.00012328,2]
[352739450,1739283107409,-638.72,0.00012328,2]
[352739451,1739283107419,-500.0,0.00012328,2]
[352739452,1739283107429,-884.07,0.00012328,2]
[352739453,1739283107439,-1344.05,0.00012328,2]
[352739454,1739283107449,-500.0,0.00012328,2]
[352739455,1739283107459,-500.0,0.00012328,2]
[352739456,1739283107469,-1667.76,0.00012328,2]
[352739457,1739283107480,-500.0,0.00012328,2]
[352739458,1739283107490,-515.7,0.00012328,2]
[352739459,1739283107500,-522.2,0.00012328,2]
[352739460,1739283107510,-1113.72,0.00012328,2]
[352739461,1739283107519,-500.0,0.00012328,2]
[352739462,1739283107529,-757.59,0.00012328,2]
[352739463,1739283107539,-1179.03,0.00012328,2]
[352739464,1739283107549,-169.457292,0.00012328,2]
[352739465,1739283107559,-1282.85,0.00012328,2]
[352739466,1739283107569,-808.33,0.00012328,2]
[352739467,1739283107579,-1795.37,0.00012328,2]
[352739468,1739283107590,-1850.76,0.00012328,2]
[352739469,1739283107599,-603.62,0.00012328,2]
[352739470,1739283107609,-500.0,0.00012328,2]
[352739471,1739283107619,-1151.05,0.00012328,2]
[352739472,1739283107630,-1119.24,0.00012328,2]
[352739473,1739283107640,-500.0,0.00012328,2]
[352739474,1739283107650,-1347.78,0.00012328,2]
[352739475,1739283107660,-819.33,0.00012328,2]
[352739476,1739283107671,-1536.44,0.00012328,2]
[352739477,1739283107680,-892.03,0.00012328,2]
[352739478,1739283107691,-2017.38,0.00012328,2]
[352739479,1739283107700,-948.75,0.00012328,2]
[352739480,1739283107713,-526.05,0.00012328,2]
[352739481,1739283107723,-582.46,0.00012328,2]
[352739482,1739283107732,-683.75,0.00012328,2]
[352739483,1739283107742,-657.71,0.00012328,2]
[352739484,1739283107752,-2105.16,0.00012328,2]
[352739485,1739283107762,-1725.88,0.00012328,2]
[352739486,1739283107772,-500.0,0.00012328,2]
[352739487,1739283107781,-634.23,0.00012328,2]
[352739488,1739283107791,-1375.79,0.00012328,2]
[352739489,1739283107800,-582.27,0.00012328,2]
[352739490,1739283107810,-1848.33,0.00012328,2]
[352739491,1739283107820,-500.0,0.00012328,2]
[352739492,1739283107834,-853.65,0.00012328,2]
[352739493,1739283107844,-500.0,0.00012328,2]
[352739494,1739283107854,-1602.84,0.00012328,2]
[352739495,1739283107865,-1126.45,0.00012328,2]
[352739496,1739283107875,-500.0,0.00012328,2]
[352739497,1739283107885,-1623.28,0.00012328,2]
[352739498,1739283107895,-1955.0,0.00012328,2]
[352739499,1739283107906,-1095.96,0.00012328,2]
[352739500,1739283107916,-1427.46,0.00012328,2]
[352739501,1739283107927,-733.7,0.00012328,2]
[352739502,1739283107938,-500.0,0.00012328,2]
[352739503,1739283107948,-636.24,0.00012328,2]
[352739504,1739283107959,-1892.51,0.00012328,2]
[352739505,1739283107969,-500.0,0.00012328,2]
[352739506,1739283107979,-1207.29,0.00012328,2]
[352739507,1739283107990,-507.93,0.00012328,2]
[352739508,1739283108000,-1791.03,0.00012328,2]
[352739509,1739283108011,-1757.72,0.00012328,2]
[352739510,1739283108021,-1102.03,0.00012328,2]
[352739511,1739283108031,-713.64,0.00012328,2]
[352739512,1739283108042,-500.0,0.00012328,2]
[352739513,1739283108053,-4488.97,0.00012328,2]
[352739514,1739283108064,-1078.79,0.00012328,2]
[352739515,1739283108079,-1189.98,0.00012328,2]
[352739516,1739283108088,-2171.34,0.00012328,2]
[352739517,1739283108098,-2231.76,0.00012328,2]
[352739518,1739283108107,-3213.91,0.00012328,2]
[352739519,1739283108117,-1985.57,0.00012328,2]
[352739520,1739283108127,-500.0,0.00012328,2]
[352739521,1739283108138,-500.0,0.00012328,2]
[352739522,1739283108148,-2233.07,0.00012328,2]
[352739523,1739283108159,-2042.81,0.00012328,2]
[352739524,1739283108170,-1475.61,0.00012328,2]
[352739525,1739283108181,-810.69,0.00012328,2]
[352739526,1739283108191,-2371.13,0.00012328,2]
[352739527,1739283108201,-500.0,0.00012328,2]
[352739528,1739283108211,-700.09,0.00012328,2]
[352739529,1739283108221,-1214.76,0.00012328,2]
[352739530,1739283108232,-2171.63,0.00012328,2]
[352739531,1739283108241,-2387.02,0.00012328,2]
[352739532,1739283108252,-620.08,0.00012328,2]
[352739533,1739283108262,-2340.95,0.00012328,2]
[352739534,1739283108273,-1886.51,0.00012328,2]
[352739535,1739283108284,-5444.75,0.00012328,2]
[352739536,1739283108295,-2886.17,0.00012328,2]
[352739537,1739283108305,-238.52351537,0.00012328,2]
[352739538,1739283108315,-727.8,0.00012328,2]
[352739539,1739283108327,-707.04,0.00012328,2]
[352739540,1739283108336,-2310.94,0.00012328,2]
[352739541,1739283108347,-2343.44,0.00012328,2]
[352739542,1739283108357,-937.33,0.00012328,2]
[352739543,1739283108368,-1158.26,0.00012328,2]
[352739544,1739283108379,-383.15911796,0.00012328,2]
[352739545,1739283108388,-670.35,0.00012328,2]
[352739546,1739283108399,-2558.39,0.00012328,2]
[352739547,1739283108474,-500.0,0.00012328,2]
[352739548,1739283108484,-620.78,0.00012328,2]
[352739549,1739283108495,-2007.68,0.00012328,2]
[352739550,1739283108505,-2648.76,0.00012328,2]
[352739551,1739283108516,-2171.75,0.00012328,2]
[352739552,1739283108527,-2434.45,0.00012328,2]
[352739553,1739283108536,-731.57,0.00012328,2]
[352739554,1739283108546,-2583.49,0.00012328,2]
[352739555,1739283108556,-2031.5,0.00012328,2]
[352739556,1739283108566,-500.0,0.00012328,2]
[352739557,1739283108577,-3062.38,0.00012328,2]
[352739558,1739283108588,-1845.16,0.00012328,2]
[352739559,1739283108598,-3061.99,0.00012328,2]
[352739560,1739283108610,-2068.15,0.00012328,2]
[352739561,1739283108621,-1009.34,0.00012328,2]
[352739562,1739283108634,-2900.54,0.00012328,2]
[352739563,1739283108644,-2626.43,0.00012328,2]
[352739564,1739283108654,-500.0,0.00012328,2]
[352739565,1739283108665,-2213.47,0.00012328,2]
[352739566,1739283108675,-1085.29,0.00012328,2]
[352739567,1739283108685,-2309.34,0.00012328,2]
[352739568,1739283108696,-7282.99,0.00012328,2]
[352739569,1739283108707,-1952.41,0.00012328,2]
[352739570,1739283108719,-701.48,0.00012328,2]
[352739571,1739283108729,-500.0,0.00012328,2]
[352739572,1739283108738,-1931.94,0.00012328,2]
[352739573,1739283108748,-500.0,0.00012328,2]
[352739574,1739283108758,-5326.26,0.00012328,2]
[352739575,1739283108768,-500.0,0.00012328,2]
[352739576,1739283108777,-3327.15,0.00012328,2]
[352739577,1739283108787,-1259.82,0.00012328,2]
[352739578,1739283108797,-500.0,0.00012328,2]
[352739579,1739283108808,-667.96,0.00012328,2]
[352739580,1739283108818,-500.0,0.00012328,2]
[352739581,1739283108831,-3450.17,0.00012328,2]
[352739582,1739283108841,-500.0,0.00012328,2]
[352739583,1739283108852,-1704.66,0.00012328,2]
[352739584,1739283108862,-500.0,0.00012328,2]
[352739585,1739283108872,-500.0,0.00012328,2]
[352739586,1739283108883,-2127.38,0.00012328,2]
[352739587,1739283108894,-500.0,0.00012328,2]
[352739588,1739283108904,-1476.79,0.00012328,2]
[352739589,1739283108915,-1839.16,0.00012328,2]
[352739590,1739283108924,-889.84,0.00012328,2]
[352739591,1739283108935,-2565.16,0.00012328,2]
[352739592,1739283108945,-2467.78,0.00012328,2]
[352739593,1739283108955,-500.0,0.00012328,2]
[352739594,1739283108965,-1657.8,0.00012328,2]
[352739595,1739283108975,-683.49,0.00012328,2]
[352739596,1739283108986,-500.0,0.00012328,2]
[352739597,1739283108997,-1036.17,0.00012328,2]
[352739598,1739283109008,-2953.99,0.00012328,2]
[352739599,1739283109018,-500.0,0.00012328,2]
[352739600,1739283109028,-2380.39,0.00012328,2]
[352739601,1739283109039,-1433.77,0.00012328,2]
[352739602,1739283109049,-1071.62,0.00012328,2]
[352739603,1739283109059,-1274.15,0.00012328,2]
[352739604,1739283109069,-500.0,0.00012328,2]
[352739605,1739283109080,-855.01,0.00012328,2]
[352739606,1739283109089,-1027.27,0.00012328,2]
[352739607,1739283109099,-1213.71,0.00012328,2]
[352739608,1739283109109,-2875.82,0.00012328,2]
[352739609,1739283109118,-727.11,0.00012328,2]
[352739610,1739283109128,-500.0,0.00012328,2]
[352739611,1739283109138,-713.14,0.00012328,2]
[352739612,1739283109148,-2037.92,0.00012328,2]
[352739613,1739283109157,-2384.33,0.00012328,2]
[352739614,1739283109167,-151.0,0.00012329,2]
[352739615,1739283109177,-151.09547,0.00012329,2]
[352739616,1739283109186,-151.0,0.00012329,2]
[352739617,1739283109196,-151.0,0.00012329,2]
[352739618,1739283109205,-151.0,0.00012329,2]
[352739619,1739283109215,-152.682349,0.00012329,2]
[352739620,1739283109224,-151.0,0.00012329,2]
[352739621,1739283109233,-151.1829,0.00012329,2]
[352739622,1739283109243,-151.0,0.00012329,2]
[352739623,1739283109253,-151.0,0.00012329,2]
[352739624,1739283109262,-151.0,0.00012329,2]
[352739625,1739283109272,-151.0,0.00012329,2]
[352739626,1739283109281,-151.0,0.00012329,2]
[352739627,1739283109290,-151.0,0.00012329,2]
[352739628,1739283109299,-151.286899,0.00012329,2]
[352739629,1739283109309,-151.0,0.00012329,2]
[352739630,1739283109319,-151.0,0.00012329,2]
[352739631,1739283109330,-201.928126,0.00012329,2]
[352739632,1739283109340,-151.0,0.00012329,2]
[352739633,1739283109348,-151.0,0.00012329,2]
[352739634,1739283109358,-151.087981,0.00012329,2]
[352739635,1739283109368,-151.0,0.00012329,2]
[352739636,1739283109377,-157.673321,0.00012329,2]
[352739637,1739283109387,-151.916865,0.00012329,2]
[352739638,1739283109396,-151.916865,0.00012329,2]
[352739639,1739283109406,-151.916865,0.00012329,2]
[352739640,1739283109415,-151.916865,0.00012329,2]
[352739641,1739283109425,-151.916865,0.00012329,2]
[352739642,1739283109434,-151.916865,0.00012329,2]
[352739643,1739283109444,-151.916865,0.00012329,2]
[352739644,1739283109453,-151.916865,0.00012329,2]
[352739645,1739283109462,-151.0,0.00012329,2]
[352739646,1739283109472,-151.0,0.00012329,2]
[352739647,1739283109481,-151.0,0.00012329,2]
[352739648,1739283109491,-151.0,0.00012329,2]
[352739649,1739283109501,-151.0,0.00012329,2]
[352739650,1739283109511,-151.0,0.00012329,2]
[352739651,1739283109521,-151.0,0.00012329,2]
[352739652,1739283109530,-151.0,0.00012329,2]
[352739653,1739283109539,-151.0,0.00012329,2]
[352739654,1739283109548,-151.0,0.00012329,2]
[352739655,1739283109558,-151.0,0.00012329,2]
[352739656,1739283109567,-151.0,0.00012329,2]
[352739657,1739283109578,-151.0,0.00012329,2]
[352739658,1739283109587,-151.0,0.00012329,2]
[352739659,1739283109596,-151.0,0.00012329,2]
[352739660,1739283109606,-187.849583,0.00012329,2]
[352739661,1739283109616,-151.0,0.00012329,2]
[352739662,1739283109625,-151.0,0.00012329,2]
[352739663,1739283109639,-151.0,0.00012329,2]
[352739664,1739283109648,-151.0,0.00012329,2]
[352739665,1739283109657,-151.0,0.00012329,2]
[352739666,1739283109668,-151.0,0.00012329,2]
[352739667,1739283109678,-151.0,0.00012329,2]
[352739668,1739283109688,-151.0,0.00012329,2]
[352739669,1739283109698,-151.0,0.00012329,2]
[352739670,1739283109711,-151.0,0.00012329,2]
[352739671,1739283109721,-151.0,0.00012329,2]
[352739672,1739283109730,-151.0,0.00012329,2]
[352739673,1739283109740,-151.0,0.00012329,2]
[352739674,1739283109751,-163.354138,0.00012329,2]
[352739675,1739283109762,-151.0,0.00012329,2]
[352739676,1739283109772,-151.0,0.00012329,2]
[352739677,1739283109781,-151.0,0.00012329,2]
[352739678,1739283109792,-151.0,0.00012329,2]
[352739679,1739283109802,-151.0,0.00012329,2]
[352739680,1739283109812,-153.071946,0.00012329,2]
[352739681,1739283109821,-151.0,0.00012329,2]
[352739682,1739283109831,-261.62291,0.00012329,2]
[352739683,1739283109841,-151.0,0.00012329,2]
[352739684,1739283109850,-151.0,0.00012329,2]
[352739685,1739283109860,-151.0,0.00012329,2]
[352739686,1739283109869,-228.791846,0.00012329,2]
[352739687,1739283109880,-151.0,0.00012329,2]
[352739688,1739283109891,-151.0,0.00012329,2]
[352739689,1739283109900,-151.0,0.00012329,2]
[352739690,1739283109909,-151.0,0.00012329,2]
[352739691,1739283109919,-151.0,0.00012329,2]
[352739692,1739283109928,-151.0,0.00012329,2]
[352739693,1739283109937,-151.0,0.00012329,2]
[352739694,1739283109948,-151.0,0.00012329,2]
[352739695,1739283109957,-151.0,0.00012329,2]
[352739696,1739283109967,-151.0,0.00012329,2]
[352739697,1739283109976,-151.0,0.00012329,2]
[352739698,1739283109986,-151.0,0.00012329,2]
[352739699,1739283109996,-167.20978,0.00012329,2]
[352739700,1739283110006,-151.0,0.00012329,2]
[352739701,1739283110016,-151.439415,0.00012329,2]
[352739702,1739283110027,-151.0,0.00012329,2]
[352739703,1739283110037,-151.0,0.00012329,2]
[352739704,1739283110047,-151.0,0.00012329,2]
[352739705,1739283110057,-151.0,0.00012329,2]
[352739706,1739283110067,-227.434047,0.00012329,2]
[352739707,1739283110078,-151.0,0.00012329,2]
[352739708,1739283110088,-151.0,0.00012329,2]
[352739709,1739283110098,-152.031685,0.00012329,2]
[352739710,1739283110108,-151.0,0.00012329,2]
[352739711,1739283110118,-151.0,0.00012329,2]
[352739712,1739283110128,-151.960684,0.00012329,2]
[352739713,1739283110138,-151.0,0.00012329,2]
[352739714,1739283110148,-151.0,0.00012329,2]
[352739715,1739283110158,-264.866356,0.00012329,2]
[352739716,1739283110167,-343.152334,0.00012329,2]
[352739717,1739283110175,-343.152334,0.00012329,2]
[352739718,1739283110185,-343.152334,0.00012329,2]
[352739719,1739283110194,-343.152334,0.00012329,2]
[352739720,1739283110204,-343.152334,0.00012329,2]
[352739721,1739283110213,-343.152334,0.00012329,2]
[352739722,1739283110224,-343.152334,0.00012329,2]
[352739723,1739283110234,-343.152334,0.00012329,2]
[352739724,1739283110244,-343.152334,0.00012329,2]
[352739725,1739283110254,-343.152334,0.00012329,2]
[352739726,1739283110264,-343.152334,0.00012329,2]
[352739727,1739283110273,-343.152334,0.00012329,2]
[352739728,1739283110282,-343.152334,0.00012329,2]
[352739729,1739283110291,-343.152334,0.00012329,2]
[352739730,1739283110301,-343.152334,0.00012329,2]
[352739731,1739283110310,-343.152334,0.00012329,2]
[352739732,1739283110320,-343.152334,0.00012329,2]
[352739733,1739283110332,-343.152334,0.00012329,2]
[352739734,1739283110342,-343.152334,0.00012329,2]
[352739735,1739283110352,-343.152335,0.00012329,2]
[352739736,1739283110364,-1503.708106,0.00012329,2]
[352739737,1739283110374,-1503.708106,0.00012329,2]
[352739738,1739283110383,-1503.708106,0.00012329,2]
[352739739,1739283110393,-1503.708106,0.00012329,2]
[352739740,1739283110403,-1503.708106,0.00012329,2]
[352739741,1739283110412,-1503.708106,0.00012329,2]
[352739742,1739283110422,-1503.708106,0.00012329,2]
[352739743,1739283110432,-1503.708106,0.00012329,2]
[352739744,1739283110441,-1503.708106,0.00012329,2]
[352739745,1739283110451,-1503.708106,0.00012329,2]
[352739746,1739283110461,-1503.708106,0.00012329,2]
[352739747,1739283110471,-1503.708106,0.00012329,2]
[352739748,1739283110480,-1503.708106,0.00012329,2]
[352739749,1739283110490,-1503.708106,0.00012329,2]
[352739750,1739283110501,-1503.708106,0.00012329,2]
[352739751,1739283110510,-1503.708106,0.00012329,2]
[352739752,1739283110520,-1503.708106,0.00012329,2]
[352739753,1739283110530,-1503.708106,0.00012329,2]
[352739754,1739283110540,-1503.708106,0.00012329,2]
[352739755,1739283110550,-1503.708098,0.00012329,2]
[352739756,1739283110561,-151.218871,0.00012329,2]
[352739757,1739283110571,-712.241222,0.00012329,2]
[352739758,1739283110586,-712.241222,0.00012329,2]
[352739759,1739283110595,-712.241222,0.00012329,2]
[352739760,1739283110605,-712.241222,0.00012329,2]
[352739761,1739283110615,-712.241222,0.00012329,2]
[352739762,1739283110627,-712.241222,0.00012329,2]
[352739763,1739283110638,-712.241222,0.00012329,2]
[352739764,1739283110648,-712.241222,0.00012329,2]
[352739765,1739283110658,-712.241222,0.00012329,2]
[352739766,1739283110668,-712.241222,0.00012329,2]
[352739767,1739283110678,-712.241222,0.00012329,2]
[352739768,1739283110689,-712.241222,0.00012329,2]
[352739769,1739283110699,-712.241222,0.00012329,2]
[352739770,1739283110709,-712.241222,0.00012329,2]
[352739771,1739283110720,-151.0,0.00012329,2]
[352739772,1739283110730,-712.241222,0.00012329,2]
[352739773,1739283110740,-151.0,0.00012329,2]
[352739774,1739283110751,-712.241222,0.00012329,2]
[352739775,1739283110761,-151.0,0.00012329,2]
[352739776,1739283110772,-712.241222,0.00012329,2]
[352739777,1739283110782,-712.241222,0.00012329,2]
[352739778,1739283110792,-151.0,0.00012329,2]
[352739779,1739283110803,-712.241222,0.00012329,2]
[352739780,1739283110813,-151.0,0.00012329,2]
[352739781,1739283110823,-712.241225,0.00012329,2]
[352739782,1739283110836,-151.0,0.00012329,2]
[352739783,1739283110846,-151.0,0.00012329,2]
[352739784,1739283110857,-276.147529,0.00012329,2]
[352739785,1739283110867,-210.990059,0.00012329,2]
[352739786,1739283110877,-210.990059,0.00012329,2]
[352739787,1739283110887,-210.990059,0.00012329,2]
[352739788,1739283110897,-210.990059,0.00012329,2]
[352739789,1739283110907,-210.990059,0.00012329,2]
[352739790,1739283110918,-210.990059,0.00012329,2]
[352739791,1739283110928,-210.990059,0.00012329,2]
[352739792,1739283110939,-210.990059,0.00012329,2]
[352739793,1739283110950,-210.990059,0.00012329,2]
[352739794,1739283110960,-210.990059,0.00012329,2]
[352739795,1739283110971,-210.990059,0.00012329,2]
[352739796,1739283110982,-210.990059,0.00012329,2]
[352739797,1739283110992,-210.990059,0.00012329,2]
[352739798,1739283111003,-210.990059,0.00012329,2]
[352739799,1739283111013,-210.990059,0.00012329,2]
[352739800,1739283111023,-210.990059,0.00012329,2]
[352739801,1739283111033,-261.431917,0.00012329,2]
[352739802,1739283111043,-210.990059,0.00012329,2]
[352739803,1739283111053,-210.990059,0.00012329,2]
[352739804,1739283111063,-210.990059,0.00012329,2]
[352739805,1739283111073,-210.990056,0.00012329,2]
[352739806,1739283111084,-151.0,0.00012329,2]
[352739807,1739283111094,-151.0,0.00012329,2]
[352739808,1739283111104,-151.0,0.00012329,2]
[352739809,1739283111114,-151.0,0.00012329,2]
[352739810,1739283111123,-151.0,0.00012329,2]
[352739811,1739283111134,-151.0,0.00012329,2]
[352739812,1739283111143,-151.0,0.00012329,2]
[352739813,1739283111154,-151.0,0.00012329,2]
[352739814,1739283111163,-151.0,0.00012329,2]
[352739815,1739283111172,-151.0,0.00012329,2]
[352739816,1739283111181,-151.0,0.00012329,2]
[352739817,1739283111190,-151.0,0.00012329,2]
[352739818,1739283111200,-5521.85723472,0.00012329,2]
[352739819,1739283111209,-8500.0,0.00012329,2]
[352739820,1739283111218,-2003.91705439,0.00012329,2]
[352739821,1739283111232,-152.0,0.0001235,3]
[352739822,1739283111242,-855.58,0.00012395,2]
[352739823,1739283111251,-501.75522861,0.00012397,2]
[352739824,1739283111260,-151.0,0.00012456,2]
[352739825,1739283111270,-1000.0,0.00012457,2]
[352739826,1739283111280,-524.64,0.00012458,2]
[352739827,1739283111291,-1114.15,0.00012459,2]
[352739828,1739283111301,-1907.79,0.00012459,2]
[352739829,1739283111311,-500.0,0.00012459,2]
[352739830,1739283111321,-2042.7,0.00012459,2]
[352739831,1739283111332,-2608.79,0.00012459,2]
[352739832,1739283111342,-500.0,0.00012465,2]
[352739833,1739283111352,-500.0,0.00012465,2]
[352739834,1739283111362,-500.0,0.00012465,2]
[352739835,1739283111371,-545.31,0.00012465,2]
[352739836,1739283111381,-151.91687,0.00012465,2]
[352739837,1739283111391,-545.55982336,0.00012465,2]
[352739838,1739283111400,-221.47844117,0.00012465,2]
[352739839,1739283111410,-623.89,0.00012465,2]
[352739840,1739283111420,-2289.514115,0.00012465,2]
[352739841,1739283111430,-912.071354,0.00012465,2]
[352739842,1739283111440,-562.39,0.00012465,2]
[352739843,1739283111450,-1335.42,0.00012465,2]
[352739844,1739283111459,-500.0,0.00012465,2]
[352739845,1739283111470,-500.0,0.00012465,2]
[352739846,1739283111479,-500.0,0.00012465,2]
[352739847,1739283111490,-500.0,0.00012465,2]
[352739848,1739283111501,-1026.73,0.00012465,2]
[352739849,1739283111511,-500.0,0.00012465,2]
[352739850,1739283111520,-1291.73,0.00012465,2]
[352739851,1739283111530,-500.0,0.00012465,2]
[352739852,1739283111540,-1006.21,0.00012465,2]
[352739853,1739283111550,-500.0,0.00012465,2]
[352739854,1739283111560,-654.08,0.00012465,2]
[352739855,1739283111570,-500.0,0.00012465,2]
[352739856,1739283111580,-500.0,0.00012465,2]
[352739857,1739283111591,-500.0,0.00012465,2]
[352739858,1739283111600,-648.91,0.00012465,2]
[352739859,1739283111610,-829.91,0.00012465,2]
[352739860,1739283111620,-1283.05,0.00012465,2]
[352739861,1739283111631,-639.85061835,0.00012465,2]
[352739862,1739283111642,-627.22,0.00012465,2]
[352739863,1739283111652,-784.62,0.00012465,2]
[352739864,1739283111662,-500.0,0.00012465,2]
[352739865,1739283111673,-500.0,0.00012465,2]
[352739866,1739283111683,-500.0,0.00012465,2]
[352739867,1739283111693,-1049.93,0.00012465,2]
[352739868,1739283111704,-500.0,0.00012465,2]
[352739869,1739283111714,-656.24,0.00012465,2]
[352739870,1739283111724,-500.0,0.00012465,2]
[352739871,1739283111733,-717.49,0.00012465,2]
[352739872,1739283111742,-750.73,0.00012465,2]
[352739873,1739283111752,-899.58,0.00012465,2]
[352739874,1739283111762,-500.0,0.00012465,2]
[352739875,1739283111772,-951.35,0.00012465,2]
[352739876,1739283111782,-500.0,0.00012465,2]
[352739877,1739283111792,-1059.29,0.00012465,2]
[352739878,1739283111802,-1079.43,0.00012465,2]
[352739879,1739283111813,-771.17,0.00012465,2]
[352739880,1739283111823,-561.69368905,0.00012465,2]
[352739881,1739283111835,-500.0,0.00012465,2]
[352739882,1739283111845,-621.59,0.00012465,2]
[352739883,1739283111855,-500.0,0.00012465,2]
[352739884,1739283111865,-500.0,0.00012465,2]
[352739885,1739283111875,-772.38,0.00012465,2]
[352739886,1739283111886,-637.38,0.00012465,2]
[352739887,1739283111896,-564.18,0.00012465,2]
[352739888,1739283111906,-500.0,0.00012465,2]
[352739889,1739283111917,-562.5,0.00012465,2]
[352739890,1739283111928,-726.26,0.00012465,2]
[352739891,1739283111939,-500.0,0.00012465,2]
[352739892,1739283111949,-500.0,0.00012465,2]
[352739893,1739283111959,-500.0,0.00012465,2]
[352739894,1739283111969,-612.74784723,0.00012465,2]
[352739895,1739283111979,-500.0,0.00012465,2]
[352739896,1739283111990,-657.71,0.00012465,2]
[352739897,1739283112000,-545.49,0.00012465,2]
[352739898,1739283112010,-947.55,0.00012465,2]
[352739899,1739283112020,-500.0,0.00012465,2]
[352739900,1739283112031,-500.0,0.00012465,2]
[352739901,1739283112041,-304.50101265,0.00012465,2]
[352739902,1739283112051,-500.0,0.00012465,2]
[352739903,1739283112061,-500.0,0.00012465,2]
[352739904,1739283112071,-791.02,0.00012465,2]
[352739905,1739283112081,-594.78,0.00012465,2]
[352739906,1739283112091,-899.13,0.00012465,2]
[352739907,1739283112101,-723.56,0.00012465,2]
[352739908,1739283112112,-623.3,0.00012465,2]
[352739909,1739283112122,-500.0,0.00012465,2]
[352739910,1739283112132,-602.04,0.00012465,2]
[352739911,1739283112142,-634.43,0.00012465,2]
[352739912,1739283112152,-500.0,0.00012465,2]
[352739913,1739283112161,-689.47,0.00012465,2]
[352739914,1739283112173,-500.0,0.00012465,2]